bitfinex-derivatives/quotes_ETHF0:USTF0_20250824
["timestamp","ask_amount","ask_price","bid_price","bid_amount"]
[1756060251534,0.6901,4947.1,4946.2,0.40446]
[1756060251738,0.40443,4946.6,4946.3,0.40445]
[1756060251939,0.656,4946.4,4946.1,0.40447]
[1756060252246,0.6901,4946.2,4946.1,0.40447]
[1756060252643,0.3339,4946.4,4945.9,0.3638]
[1756060252947,0.6901,4946.1,4945.9,0.3638]
[1756060253149,0.368,4946.0,4945.2,1.01137]
[1756060253349,3.96032264,4946.1,4945.8,0.701]
[1756060253540,0.3221,4946.0,4945.9,0.3638]
[1756060253745,0.6901,4946.0,4945.9,0.3638]
[1756060254341,4.65042264,4946.0,4945.9,0.3638]
[1756060254843,0.6901,4945.7,4945.6,0.3638]
[1756060255547,0.368,4945.6,4944.7,1.08229]
[1756060255751,0.6901,4945.1,4944.7,0.76839]
[1756060255939,0.40457,4945.0,4944.7,0.3638]
[1756060256138,0.6901,4945.0,4944.9,0.40457]
[1756060256340,0.6901,4945.0,4944.9,0.76837]
[1756060256747,0.3221,4944.9,4944.1,0.3139]
[1756060256949,4.66222264,4945.0,4943.9,1.80247834]
[1756060256950,3.96032264,4945.0,4944.8,0.40458]
[1756060257145,3.96032264,4945.0,4944.9,0.701]
[1756060257848,8.29422264,4945.0,4944.1,0.3638]
[1756060258150,0.40462,4944.4,4943.7,0.40467]
[1756060258347,0.6901,4944.3,4943.7,0.40467]
[1756060258653,5.05504264,4944.3,4943.7,0.40467]
[1756060258854,0.6901,4944.2,4943.9,0.3638]
[1756060259054,1.03155,4945.4,4943.9,0.3638]
[1756060259055,0.3221,4944.8,4944.0,0.701]
[1756060259248,0.368,4944.9,4944.0,0.3372]
[1756060259453,0.40452,4945.5,4944.9,1.0149]
[1756060259649,4.32832264,4945.4,4945.1,0.3638]
[1756060259850,1.09464,4945.3,4945.2,0.3638]
[1756060260153,4.65042264,4945.3,4944.7,0.40458]
[1756060260354,0.6901,4945.7,4944.9,0.3372]
[1756060260555,0.6901,4945.7,4945.0,0.3638]
[1756060260745,4.32832264,4945.6,4945.0,0.3638]
[1756060260947,0.40454,4945.3,4945.0,0.3638]
[1756060261253,0.40454,4945.3,4944.3,0.3372]
[1756060261254,0.368,4945.0,4944.3,0.3638]
[1756060261448,0.40458,4944.8,4944.3,0.3638]
[1756060261650,0.6901,4944.6,4944.3,0.3638]
[1756060261848,0.368,4944.6,4944.5,0.701]
[1756060262152,0.40459,4944.7,4944.5,0.3638]
[1756060262353,0.6901,4944.6,4944.5,0.3638]
[1756060262959,4.65042264,4944.6,4944.5,0.3638]
[1756060263346,4.32832264,4944.6,4944.2,0.40463]
[1756060263556,0.368,4944.4,4943.9,0.3372]
[1756060263761,0.0202,4944.7,4943.3,0.3139]
[1756060263762,0.40464,4944.1,4943.5,0.40468]
[1756060263956,0.3221,4943.9,4943.3,0.3638]
[1756060264257,0.40469,4943.5,4942.8,0.3638]
[1756060264557,1.0115,4944.6,4942.8,0.3638]
[1756060264558,0.368,4944.7,4944.1,0.701]
[1756060264752,0.368,4944.7,4944.5,0.4046]
[1756060264952,4.32832264,4944.7,4944.6,0.3638]
[1756060265459,0.6901,4945.4,4945.2,0.3638]
[1756060265648,3.96032264,4945.3,4945.2,0.3638]
[1756060265846,3.96032264,4945.3,4945.2,0.701]
[1756060266056,0.368,4946.1,4946.0,0.40448]
[1756060266353,0.3221,4946.6,4946.3,0.701]
[1756060266550,3.96032264,4946.6,4946.4,0.3638]
[1756060266760,0.3339,4947.4,4946.1,0.3372]
[1756060266761,0.3221,4947.1,4946.1,0.3372]
[1756060266962,0.3221,4947.1,4946.6,0.40442]
[1756060267153,0.7003,4947.0,4946.8,0.3556]
[1756060267356,0.7003,4947.0,4946.2,0.3556]
[1756060267660,0.3675,4947.0,4946.9,0.3556]
[1756060268161,4.32782264,4947.0,4946.9,0.3556]
[1756060268359,0.3675,4947.5,4947.2,0.40438]
[1756060268563,0.3675,4947.4,4947.3,0.3556]
[1756060268960,0.7003,4947.4,4947.3,0.3556]
[1756060269160,0.7003,4947.3,4947.0,0.3556]
[1756060269361,0.7003,4947.2,4947.0,0.3556]
[1756060269553,0.3675,4947.1,4947.0,0.3556]
[1756060269757,0.40436,4947.6,4946.9,0.40441]
[1756060270060,0.77184,4947.7,4947.0,0.40439]
[1756060270359,0.3675,4948.0,4947.9,0.75992]
[1756060270559,1.01038,4950.1,4948.8,0.40425]
[1756060270560,0.3328,4949.5,4948.8,0.40425]
[1756060270763,3.96032264,4949.4,4949.2,0.40422]
[1756060270966,0.3675,4950.0,4949.7,0.40417]
[1756060271158,3.96032264,4950.1,4949.9,0.3556]
[1756060271357,0.7003,4950.6,4950.0,0.40415]
[1756060271358,0.4675,4950.2,4950.0,0.40415]
[1756060271562,3.96032264,4950.1,4950.0,0.3556]
[1756060271961,4.32782264,4950.1,4950.0,0.3556]
[1756060272357,0.3328,4949.8,4948.9,0.3556]
[1756060272559,0.40419,4949.6,4948.9,0.3556]
[1756060273068,0.3675,4950.0,4949.4,0.4042]
[1756060273263,0.3675,4950.0,4949.8,0.40417]
[1756060273561,0.8003,4950.2,4950.1,0.3556]
[1756060273763,3.96032264,4950.1,4949.4,0.6787]
[1756060273962,0.40416,4949.9,4949.4,0.3556]
[1756060274155,0.7003,4949.8,4949.4,0.35134537]
[1756060274357,0.4675,4950.2,4949.5,0.40419]
[1756060274657,3.96032264,4950.1,4949.2,0.3231]
[1756060274860,0.40418,4949.8,4949.2,0.3231]
[1756060275062,0.40419,4949.6,4948.6,0.72737]
[1756060275263,0.3675,4949.2,4948.6,0.3231]
[1756060275470,0.77173,4949.2,4948.6,0.3231]
[1756060275668,3.96032264,4949.1,4948.6,0.72736]
[1756060275863,0.3675,4948.9,4948.6,0.72736]
[1756060276064,0.7003,4948.8,4948.3,0.40429]
[1756060276272,0.3675,4948.6,4947.9,0.3556]
[1756060276570,0.4043,4948.2,4947.9,0.3556]
[1756060276873,0.3675,4948.0,4947.9,0.3556]
[1756060277075,0.7003,4948.0,4947.4,0.3231]
[1756060277367,1.03084,4948.8,4947.5,0.3556]
[1756060277368,0.7003,4947.8,4947.5,0.3556]
[1756060277576,0.40434,4947.8,4947.5,0.3556]
[1756060277873,0.7003,4947.6,4947.5,0.3556]
[1756060278272,4.66062264,4947.6,4947.5,0.3556]
[1756060278868,4.66062264,4947.6,4946.8,0.72751]
[1756060279067,3.96032264,4947.5,4947.2,0.3556]
[1756060279264,3.96032264,4947.5,4947.3,1.38397]
[1756060279562,4.66062264,4947.5,4947.4,0.3556]
[1756060280474,0.40439,4947.2,4946.7,0.3556]
[1756060280867,0.7003,4947.0,4946.7,0.3556]
[1756060281069,0.3255,4947.1,4946.7,0.76002]
[1756060281267,0.3675,4946.8,4946.7,0.76002]
[1756060281975,0.3675,4946.8,4946.7,0.3556]
[1756060282672,4.66062264,4946.8,4946.7,0.3556]
[1756060282972,0.40445,4946.5,4945.9,0.3556]
[1756060283178,1.0258,4946.3,4945.9,0.3556]
[1756060283471,0.3328,4946.2,4945.4,0.3231]
[1756060283672,0.3328,4946.2,4946.0,0.3556]
[1756060283976,4.29312264,4946.1,4946.0,0.3556]
[1756060284274,3.96032264,4946.8,4946.0,0.46896375]
[1756060284480,0.3675,4946.8,4946.7,0.3556]
[1756060284869,0.7003,4946.8,4946.7,0.3556]
[1756060285071,0.3328,4946.1,4946.0,0.50146375]
[1756060285270,0.3328,4946.1,4946.0,0.14586375]
[1756060285271,0.7003,4946.1,4946.0,0.14586375]
[1756060285566,3.96032264,4946.1,4945.4,0.3556]
[1756060285768,0.3255,4945.8,4945.4,0.76013]
[1756060286165,0.3255,4945.8,4945.4,0.3556]
[1756060286166,3.96032264,4945.7,4945.4,0.3556]
[1756060286371,0.7003,4945.5,4945.4,0.3556]
[1756060287681,0.7003,4945.5,4945.0,0.1421944]
[1756060287682,1.0258,4945.4,4945.0,0.4977944]
[1756060287879,0.3255,4945.3,4945.0,0.3556]
[1756060288084,0.7003,4945.1,4944.2,0.3231]
[1756060288274,0.40458,4944.8,4944.3,0.3556]
[1756060288477,0.73008,4944.8,4944.3,0.3556]
[1756060288679,0.7003,4944.6,4944.3,0.3556]
[1756060288881,0.40461,4944.5,4943.8,0.76026]
[1756060289079,0.7003,4944.3,4944.1,0.40464]
[1756060289388,0.7003,4944.2,4944.1,0.3556]
[1756060289683,0.7003,4944.2,4944.1,0.76024]
[1756060290085,0.3328,4943.8,4943.1,0.40471]
[1756060290275,0.3675,4943.7,4943.1,0.40471]
[1756060290473,4.18051408,4943.7,4942.8,0.3231]
[1756060290678,4.18051408,4943.7,4943.6,1.08338]
[1756060290885,0.3675,4943.7,4943.6,1.08338]
[1756060291580,4.51331408,4943.7,4943.6,0.76028]
[1756060292174,4.51331408,4943.7,4943.6,0.3556]
[1756060292375,0.3675,4943.6,4943.5,0.40468]
[1756060292579,0.7003,4943.6,4943.5,0.76028]
[1756060292775,4.51331408,4943.6,4943.5,0.76028]
[1756060292974,0.3675,4944.9,4944.7,0.3556]
[1756060293185,0.3328,4945.5,4944.8,0.6787]
[1756060293385,0.3328,4945.5,4945.3,0.3556]
[1756060293581,0.3328,4945.5,4945.0,0.40456]
[1756060293785,3.81301408,4945.4,4945.2,0.40454]
[1756060293986,0.3328,4945.7,4945.6,0.3556]
[1756060294182,0.6491,4946.3,4945.4,0.40452]
[1756060294483,0.6491,4946.3,4944.5,1.67501]
[1756060294484,0.3328,4945.4,4944.7,0.40458]
[1756060295288,4.18051408,4945.3,4944.7,0.3556]
[1756060295489,0.6838,4945.1,4944.5,0.4046]
[1756060295684,0.3163,4945.1,4944.7,0.40458]
[1756060295982,0.7003,4944.8,4944.0,0.3231]
[1756060296183,2.54797998,4950.4,4943.3,1.43867834]
[1756060296184,0.3328,4944.2,4943.5,0.3404]
[1756060296387,4.12931408,4944.1,4943.6,0.40467]
[1756060296681,1.01132,4945.5,4943.6,0.3556]
[1756060296682,0.3675,4943.8,4943.6,0.3556]
[1756060296887,0.72095,4944.0,4943.6,0.3556]
[1756060296888,0.6776,4943.7,4943.6,0.3556]
[1756060297485,4.49061408,4943.7,4943.0,0.3404]
[1756060297791,1.01156,4944.3,4942.3,0.3404]
[1756060297792,0.661,4943.1,4942.3,0.3404]
[1756060298090,1.06572,4943.1,4942.3,0.3404]
[1756060298290,1.06572,4943.1,4942.3,0.74518]
[1756060298291,3.81301408,4943.0,4942.3,0.74518]
[1756060298590,0.9777,4942.7,4942.3,0.3404]
[1756060298789,0.3167,4942.7,4942.3,0.3404]
[1756060298990,0.3162,4943.2,4942.0,0.6612]
[1756060299185,0.3162,4943.2,4941.9,0.14708069]
[1756060299186,0.3162,4943.2,4942.4,0.40477]
[1756060299388,0.40475,4942.8,4942.5,0.3404]
[1756060299691,0.661,4942.7,4942.6,0.3404]
[1756060300088,4.47401408,4942.7,4942.6,0.3404]
[1756060301086,0.661,4943.3,4942.6,0.3404]
[1756060301291,0.3162,4943.0,4942.3,0.3261]
[1756060301590,0.661,4942.5,4942.4,0.3404]
[1756060301787,0.661,4942.5,4941.9,0.48748069]
[1756060301983,0.40479,4942.3,4942.0,0.3404]
[1756060302288,0.661,4942.1,4942.0,0.3404]
[1756060302491,0.661,4942.1,4941.4,0.40486]
[1756060302693,0.40481,4942.0,4941.3,0.3404]
[1756060302998,0.40481,4942.0,4941.3,0.74526]
[1756060303193,0.40483,4941.8,4941.3,0.48782032]
[1756060303492,0.3162,4941.5,4941.4,0.3404]
[1756060303686,0.661,4941.5,4941.4,0.3404]
[1756060303887,4.47401408,4941.5,4941.4,0.3404]
[1756060304984,0.3167,4942.4,4941.8,0.40482]
[1756060304985,0.3448,4942.0,4941.8,0.40482]
[1756060305185,0.3167,4942.4,4941.1,0.16837526]
[1756060305186,4.47401408,4942.3,4942.2,0.3404]
[1756060305390,0.661,4942.3,4942.2,0.3404]
[1756060305594,4.15781408,4942.3,4941.2,1.0016]
[1756060305793,0.3448,4941.8,4941.3,0.40486]
[1756060305986,0.661,4941.9,4941.3,0.40486]
[1756060306189,0.661,4941.9,4941.2,1.0016]
[1756060306396,4.47401408,4941.8,4941.2,0.3404]
[1756060306694,0.661,4941.1,4940.6,0.74532]
[1756060306894,0.3167,4941.1,4940.6,0.74532]
[1756060307098,0.3167,4941.7,4940.9,0.40489]
[1756060307396,0.661,4941.5,4941.1,0.74528]
[1756060307690,0.661,4941.5,4940.6,0.14747953]
[1756060307899,3.81301408,4941.4,4941.1,0.40488]
[1756060308088,0.661,4941.6,4941.2,0.6612]
[1756060308285,0.661,4941.6,4941.5,0.3404]
[1756060308896,0.661,4941.9,4941.8,0.74522]
[1756060309296,0.3448,4942.4,4941.9,0.3404]
[1756060309498,0.3448,4942.4,4942.3,0.3404]
[1756060309691,0.9777,4942.9,4942.3,0.3404]
[1756060309893,0.661,4943.1,4942.9,0.40473]
[1756060310091,0.661,4943.1,4943.0,0.3404]
[1756060310294,0.3162,4944.1,4943.9,0.40465]
[1756060310605,0.661,4944.6,4944.4,0.40461]
[1756060310892,0.661,4944.6,4944.0,0.3351]
[1756060310893,3.81301408,4944.5,4943.8,0.3404]
[1756060311101,0.40467,4943.8,4943.0,0.74512]
[1756060311401,0.661,4943.3,4941.9,0.3404]
[1756060311698,0.661,4942.7,4942.6,0.3404]
[1756060312290,4.47401408,4942.7,4941.9,0.3261]
[1756060312500,0.72149,4942.3,4941.8,0.89634403]
[1756060312693,0.40475,4942.8,4941.8,0.49152403]
[1756060312996,0.661,4942.9,4941.9,0.3404]
[1756060313195,3.81301408,4942.8,4942.2,0.40478]
[1756060313393,0.661,4942.9,4942.7,0.3404]
[1756060313699,0.661,4942.8,4942.7,0.3404]
[1756060313902,3.81301408,4942.9,4942.5,0.40477]
[1756060314093,0.661,4942.6,4942.5,0.74517]
[1756060314599,0.661,4942.3,4941.7,0.3404]
[1756060314800,1.06578,4942.5,4941.7,0.74523]
[1756060314996,0.661,4942.5,4941.9,0.40482]
[1756060315202,4.21779408,4942.4,4941.7,0.74523]
[1756060315399,0.661,4942.3,4941.7,0.3404]
[1756060315590,4.53400408,4942.3,4941.7,0.3404]
[1756060315901,0.3167,4942.1,4941.4,0.3261]
[1756060316099,0.661,4942.2,4941.5,0.3404]
[1756060316295,0.3448,4942.1,4941.8,0.40482]
[1756060316499,0.40477,4942.5,4941.8,0.74522]
[1756060316694,0.661,4943.3,4942.0,1.01202]
[1756060316894,4.47401408,4943.3,4942.9,0.40473]
[1756060317099,0.661,4943.3,4943.1,0.40471]
[1756060317299,3.81301408,4943.2,4943.1,0.6612]
[1756060317495,3.81301408,4943.2,4942.9,0.6612]
[1756060317696,0.3162,4943.5,4943.2,1.0016]
[1756060318000,4.47401408,4943.4,4943.3,0.3404]
[1756060318302,0.661,4943.4,4942.6,1.06596]
[1756060318500,0.40472,4943.1,4942.7,0.3404]
[1756060318706,0.661,4942.8,4942.7,0.3404]
[1756060319093,4.87876408,4942.8,4942.1,0.3404]
[1756060319303,0.661,4942.8,4942.2,0.40479]
[1756060319500,0.40478,4942.4,4942.1,0.3404]
[1756060319807,0.661,4942.2,4942.1,0.3404]
[1756060320002,0.72143,4943.0,4942.3,0.73988]
[1756060320201,0.40471,4943.2,4942.8,0.3404]
[1756060320494,0.3162,4943.3,4942.1,1.0016]
[1756060320708,0.72095,4942.8,4942.0,0.4048]
[1756060320903,0.72095,4942.8,4941.9,0.3404]
[1756060321301,0.661,4942.7,4942.4,0.40477]
[1756060321507,0.3162,4943.8,4943.1,0.40471]
[1756060321706,0.3167,4944.5,4942.8,1.0016]
[1756060322000,0.3167,4945.0,4943.7,0.40466]
[1756060322204,0.4046,4944.6,4943.9,0.40465]
[1756060322402,0.44737643,4944.9,4943.9,0.74504]
[1756060322403,3.81301408,4944.9,4943.9,0.74504]
[1756060322603,3.81301408,4944.8,4944.4,0.40461]
[1756060322807,3.81301408,4944.9,4944.7,1.0016]
[1756060323104,1.01106,4946.8,4943.9,1.01164]
[1756060323105,3.81301408,4944.8,4944.6,0.14639125]
[1756060323296,0.4046,4944.6,4944.0,0.40464]
[1756060323507,0.3167,4944.7,4943.9,0.74505]
[1756060323710,0.40461,4944.5,4943.9,0.74505]
[1756060323912,0.3162,4944.6,4943.9,0.3404]
[1756060324210,0.72083,4944.3,4944.1,0.3404]
[1756060324401,1.06563,4944.3,4944.1,0.3404]
[1756060325504,4.47401408,4944.2,4943.6,0.14858216]
[1756060325708,0.661,4944.5,4943.2,0.3404]
[1756060325900,0.40462,4944.4,4944.1,0.3351]
[1756060326209,0.40463,4944.3,4944.2,0.3404]
[1756060326407,0.74949,4943.5,4943.3,0.3404]
[1756060326605,0.661,4943.4,4942.6,0.6755]
[1756060326812,0.661,4943.4,4942.6,1.08025]
[1756060327002,0.40473,4943.0,4942.6,0.73985]
[1756060327199,4.13881408,4943.4,4943.1,1.0007]
[1756060327398,4.13881408,4943.4,4943.3,0.6598]
[1756060327399,3.81301408,4943.4,4943.3,0.6598]
[1756060327710,3.81301408,4943.4,4942.3,20.17756072]
[1756060327711,0.6768,4942.8,4942.5,0.3325]
[1756060327905,0.3258,4942.6,4942.5,0.3325]
[1756060328110,0.6768,4942.6,4942.5,0.3325]
[1756060328309,4.48981408,4942.6,4942.5,0.3325]
[1756060328502,4.48981408,4942.6,4941.9,0.73732]
[1756060328708,0.40478,4942.4,4941.8,0.81562749]
[1756060329009,0.6768,4942.1,4942.0,0.3325]
[1756060330414,0.40481,4942.0,4941.4,0.73736]
[1756060330809,4.48981408,4942.1,4941.4,0.3325]
[1756060331017,4.48981408,4942.1,4941.8,0.6682]
[1756060331222,4.13881408,4942.1,4941.9,0.3273]
[1756060331520,0.3258,4942.1,4942.0,0.6598]
[1756060331721,3.81301408,4942.1,4942.0,1.0007]
[1756060332819,4.89461408,4942.1,4942.0,0.3325]
[1756060333018,0.3089,4942.0,4941.5,0.3325]
[1756060333213,0.3258,4941.8,4941.6,0.3325]
[1756060333522,0.3258,4941.7,4941.2,0.40487]
[1756060333817,0.6768,4941.6,4941.4,0.3325]
[1756060334024,0.6768,4941.5,4941.4,0.3325]
[1756060334719,0.6768,4941.5,4941.0,0.40488]
[1756060334720,1.08165,4941.5,4941.0,0.40488]
[1756060334922,0.3258,4941.2,4941.1,0.3325]
[1756060335126,0.351,4941.0,4940.2,1.77117834]
[1756060335417,0.3258,4940.2,4940.0,1.43867834]
[1756060335726,0.6768,4939.8,4939.7,0.3325]
[1756060335915,0.351,4939.2,4939.1,0.3325]
[1756060336111,0.40508,4938.8,4938.2,1.43867834]
[1756060336317,0.3258,4938.9,4938.3,0.18314543]
[1756060336617,0.4051,4938.5,4937.8,0.6598]
[1756060336820,0.40508,4938.7,4937.8,0.6598]
[1756060337012,0.3258,4938.9,4937.8,0.6598]
[1756060337219,0.3089,4937.8,4937.0,0.3325]
[1756060337414,1.08202,4937.1,4936.5,0.3273]
[1756060337615,0.6768,4937.1,4936.5,0.3273]
[1756060338318,0.6768,4937.1,4936.3,0.3325]
[1756060338523,1.01272,4938.7,4935.5,0.40534]
[1756060338524,0.73106,4936.5,4935.5,0.40534]
[1756060338819,0.73106,4936.5,4935.3,0.3325]
[1756060339522,0.0202,4937.3,4935.3,0.3325]
[1756060339523,0.6768,4935.9,4935.3,0.3325]
[1756060339723,0.71423,4935.7,4934.7,0.3325]
[1756060340020,0.3258,4935.5,4934.7,0.3325]
[1756060340416,0.351,4935.4,4934.7,0.3325]
[1756060340720,0.40539,4934.9,4934.1,0.09322781]
[1756060340922,0.3258,4935.2,4934.1,0.09322781]
[1756060340923,0.6768,4934.8,4934.1,0.09322781]
[1756060341223,1.01339,4935.4,4934.1,0.09322781]
[1756060341414,1.01339,4935.4,4933.4,0.14449712]
[1756060341415,0.4055,4933.6,4933.4,0.14449712]
[1756060341616,0.8925,4933.5,4933.4,0.14449712]
[1756060342323,0.3258,4933.2,4932.0,0.3325]
[1756060342515,0.351,4933.1,4932.0,0.3325]
[1756060342718,0.351,4933.9,4933.3,0.40552]
[1756060342912,0.6768,4933.9,4931.9,1.01409]
[1756060343219,0.6768,4933.9,4931.8,20.2824]
[1756060343220,0.6768,4933.5,4932.3,0.4056]
[1756060343422,0.40554,4933.2,4932.1,0.6598]
[1756060343621,0.6768,4933.4,4933.1,0.40554]
[1756060343821,0.351,4934.0,4933.3,0.73802]
[1756060344021,0.3258,4934.1,4933.7,0.40548]
[1756060344216,0.351,4934.0,4933.0,0.3409]
[1756060344421,0.6768,4933.5,4932.5,0.6598]
[1756060344822,0.3258,4933.4,4932.8,0.40556]
[1756060345023,0.3258,4933.4,4932.7,0.73807]
[1756060345322,0.6768,4933.7,4933.5,0.4055]
[1756060345525,0.3258,4933.7,4933.6,0.3325]
[1756060346129,0.4055,4933.6,4933.2,0.3325]
[1756060346326,0.351,4933.4,4933.2,0.40553]
[1756060346627,20.27,4935.1,4933.3,4.0]
[1756060346628,0.75638,4935.1,4933.3,4.0]
[1756060346827,0.6768,4935.1,4934.4,0.3325]
[1756060347331,0.3258,4935.7,4935.1,0.40537]
[1756060347626,49.457,4937.3,4934.7,0.3273]
[1756060347627,0.351,4936.1,4934.9,0.3273]
[1756060347827,0.3258,4936.0,4935.1,0.3273]
[1756060348027,0.3258,4936.7,4936.0,0.4053]
[1756060348221,0.40526,4936.5,4935.9,0.3325]
[1756060348531,0.351,4936.5,4935.9,0.3325]
[1756060348722,0.40532,4935.8,4934.1,2.01434]
[1756060348916,0.3258,4936.0,4935.2,0.3409]
[1756060349124,0.6768,4936.0,4935.8,0.3325]
[1756060349336,0.3258,4936.0,4935.8,0.40532]
[1756060349627,0.75625,4936.6,4935.9,0.6598]
[1756060349818,0.6768,4936.3,4935.9,0.3325]
[1756060350020,0.6768,4936.1,4935.9,0.3325]
[1756060350216,0.6768,4936.0,4935.9,0.3325]
[1756060350720,0.6768,4936.0,4935.0,0.3325]
[1756060351122,0.40533,4935.7,4935.0,0.3325]
[1756060351320,0.40534,4935.5,4935.0,0.3325]
[1756060351527,0.6768,4935.6,4934.9,0.74628]
[1756060351724,0.6768,4935.6,4934.9,0.3409]
[1756060352121,0.6768,4935.6,4935.0,0.3325]
[1756060352320,0.40539,4934.9,4934.3,0.3325]
[1756060352830,0.40535,4935.5,4934.2,0.3409]
[1756060353028,0.3258,4935.4,4934.3,0.3273]
[1756060353423,0.40543,4934.5,4933.8,0.25454737]
[1756060353625,1.01341,4935.3,4933.8,0.25454737]
[1756060353626,0.3258,4934.4,4933.8,0.3325]
[1756060353826,0.3258,4934.4,4932.4,30.20199]
[1756060353827,0.3258,4933.8,4933.2,0.24589733]
[1756060354129,0.3258,4933.8,4933.2,0.40553]
[1756060354329,0.6768,4935.1,4933.4,1.0007]
[1756060354520,0.6768,4935.1,4933.7,1.0007]
[1756060354722,0.40545,4934.3,4933.7,1.0007]
[1756060354927,0.3258,4934.6,4933.7,1.0007]
[1756060355130,0.6768,4933.9,4933.8,0.3325]
[1756060355635,0.6768,4934.6,4934.0,0.40546]
[1756060355929,0.3258,4935.2,4934.1,0.6682]
[1756060356123,0.583,4936.7,4934.9,1.06519]
[1756060356327,0.7311,4936.1,4935.0,0.3325]
[1756060356732,0.351,4936.6,4934.8,0.0202]
[1756060356930,0.351,4936.6,4933.9,2.02736]
[1756060356931,0.40526,4936.6,4935.8,0.7116]
[1756060357227,0.317,4936.8,4936.2,0.40528]
[1756060357428,0.40525,4936.7,4936.1,0.6998]
[1756060357825,0.317,4936.8,4936.1,0.6998]
[1756060358034,0.72216,4937.7,4936.8,0.40523]
[1756060358228,0.72216,4937.7,4937.0,0.3635]
[1756060358428,0.72216,4937.7,4937.0,0.7116]
[1756060358634,0.317,4937.7,4937.1,0.3363]
[1756060358933,0.2295,4937.9,4936.4,0.3635]
[1756060359231,0.40528,4936.3,4935.6,0.3635]
[1756060359431,0.72228,4936.3,4935.6,0.3635]
[1756060359632,0.317,4936.3,4935.6,0.3635]
[1756060359829,0.5702,4936.2,4934.9,0.6998]
[1756060360128,0.40531,4936.0,4935.3,0.3363]
[1756060360935,0.317,4936.1,4935.7,0.3481]
[1756060361232,0.40519,4937.4,4936.7,0.3363]
[1756060361427,0.40519,4937.4,4936.9,0.3363]
[1756060361631,0.40519,4937.4,4935.1,0.0202]
[1756060361632,0.3407,4938.5,4937.0,0.7116]
[1756060361835,2.46846856,4939.8,4938.1,1.0479]
[1756060361836,0.7816358,4938.4,4938.1,1.0479]
[1756060362023,1.01248,4939.8,4939.0,0.40505]
[1756060362024,0.317,4939.6,4939.0,0.40505]
[1756060362335,0.317,4939.4,4939.2,0.3635]
[1756060362631,0.317,4939.4,4939.3,0.3363]
[1756060362832,0.317,4939.4,4938.6,0.3635]
[1756060362833,0.6577,4939.4,4938.6,0.6998]
[1756060363032,0.317,4938.7,4937.9,0.7116]
[1756060363333,0.3407,4939.1,4938.8,0.3363]
[1756060363531,0.317,4939.2,4938.7,0.75318]
[1756060363732,0.3407,4939.2,4938.7,0.7116]
[1756060364038,0.3407,4939.2,4936.9,0.0202]
[1756060364039,0.40506,4939.0,4938.3,0.40511]
[1756060364332,0.46653883,4938.9,4938.2,0.3363]
[1756060364530,0.40511,4938.4,4937.7,0.3363]
[1756060364733,0.40511,4938.4,4937.8,0.40515]
[1756060364933,0.40511,4938.4,4937.7,0.3363]
[1756060365130,0.6577,4938.2,4937.8,0.3363]
[1756060365331,0.72214,4938.1,4937.8,0.3363]
[1756060365635,0.3407,4938.0,4937.8,0.3363]
[1756060365841,0.6577,4938.7,4937.8,0.3363]
[1756060366133,1.01269,4938.8,4937.8,0.3363]
[1756060366134,0.40512,4938.3,4937.8,0.3363]
[1756060366336,0.40512,4938.3,4938.0,1.0479]
[1756060366531,0.40512,4938.3,4938.0,0.3481]
[1756060366835,0.40512,4938.3,4938.2,0.3363]
[1756060367226,0.40513,4938.1,4937.9,0.3481]
[1756060367426,0.40513,4938.1,4938.0,0.6998]
[1756060367736,0.87275743,4938.1,4938.0,0.6998]
[1756060368236,0.87275743,4938.1,4938.0,0.3363]
[1756060368432,0.72206,4939.0,4938.3,0.40511]
[1756060368637,0.46749918,4938.9,4938.5,1.0479]
[1756060368838,0.46749918,4938.8,4938.4,1.0479]
[1756060369040,0.46749918,4938.7,4938.4,1.0479]
[1756060369242,0.87258918,4938.6,4938.5,1.0479]
[1756060369431,0.87258918,4938.6,4938.5,0.3363]
[1756060369632,1.12519918,4938.6,4937.8,0.6998]
[1756060369827,0.40511,4938.4,4937.8,0.40515]
[1756060370031,1.01258,4939.3,4936.9,1.01306]
[1756060370032,0.3407,4937.8,4937.2,0.3363]
[1756060370228,0.46720383,4937.7,4936.8,0.6998]
[1756060370433,0.46720383,4937.6,4936.8,0.6998]
[1756060370634,0.46722013,4937.5,4936.8,0.6998]
[1756060370841,0.46722013,4937.4,4936.8,0.6998]
[1756060371138,0.40519,4937.4,4936.7,0.40524]
[1756060371335,0.40519,4937.4,4937.1,0.6844]
[1756060371534,0.317,4937.7,4937.1,0.7116]
[1756060371535,0.4052,4937.3,4937.1,0.7116]
[1756060371944,0.4052,4937.3,4937.1,0.3635]
[1756060372138,0.4052,4937.3,4937.1,0.6998]
[1756060372346,0.7222,4937.3,4937.2,0.3363]
[1756060372639,0.317,4938.1,4937.2,0.3363]
[1756060372840,0.46728964,4938.0,4937.0,0.0202]
[1756060373144,0.317,4938.8,4937.9,1.45304]
[1756060373340,0.46729075,4938.7,4938.0,0.74143]
[1756060373639,0.46729075,4938.6,4938.5,0.7116]
[1756060373836,0.317,4939.5,4938.7,0.3363]
[1756060374037,0.72207,4938.9,4938.7,0.3363]
[1756060374236,0.40511,4938.4,4937.6,0.3363]
[1756060374533,0.46733582,4938.3,4937.8,0.40514]
[1756060374737,0.40512,4938.3,4937.6,0.74147]
[1756060374932,0.46734517,4938.2,4937.8,0.40515]
[1756060375145,0.46762561,4938.1,4938.0,0.7116]
[1756060375342,0.74576,4939.0,4938.4,0.4051]